Cogmind - Beta 15 @@@ ROGUE MODE // 2025.07.24 @ 05:24:48 Player: shapeshifter Result: Self-destructed Performance ------------- Evolutions (2) 1000 Regions Visited (3) 600 Robots Destroyed (3) 15 Value Destroyed (75) 75 Prototype IDs (0) 0 Alien Tech Used (0) 0 Bonus (0) 0 TOTAL SCORE: 1690 Bonus ------- None Cogmind --------- Core Integrity 550/550 Matter 37/300 Energy 250/250 System Corruption 0% Temperature Cool (0) Movement Treading (160) Location -8/Materials Parts ------- > --- POWER (1) -------- Ion Engine > --- PROPULSION (2) --- Light Treads Light Treads > --- UTILITY (6) ------ Large Storage Unit Seismic Detector > --- WEAPON (2) ------- Pulse Rifle Assault Cannon > --- INVENTORY (15) --- Light Ion Engine Wheel Compact Wheel Heat Sink Large Matter Pod (0) Utility Shielding EM Pulse Cannon Improved Grenade Launcher Peak State ------------ > --- POWER ------------ Ion Engine > --- PROPULSION ------- Light Treads Light Treads > --- UTILITY ---------- Small Storage Unit Large Storage Unit Seismic Detector > --- WEAPON ----------- Pulse Rifle Assault Cannon > --- INVENTORY -------- Light Ion Engine Wheel Compact Wheel Heat Sink Large Matter Pod Utility Shielding EM Pulse Cannon Improved Grenade Launcher [Rating: 13] Favorites ----------- Power Ion Engine Engine Ion Engine Propulsion Light Treads Treads Light Treads Utility Small Storage Unit Device Seismic Detector Storage Small Storage Unit Weapon Assault Rifle Energy Gun Pulse Rifle Ballistic Gun Assault Rifle Ballistic Cannon Assault Cannon Build | -11 -10 -10 -8 ------- Run | Yrd Mat Sub Mat Slots Evolved 4 | . . . 4 Power . | . . . . Propulsion . | . . . . Utility 4 | . . . 4 Weapon . | . . . . Parts Attached 10 | 7 . . 3 Power 1 | 1 . . . Engine 1 | 1 . . . Core . | . . . . Reactor . | . . . . Propulsion 2 | 2 . . . Treads 2 | 2 . . . Leg . | . . . . Wheel . | . . . . Hover . | . . . . Flight . | . . . . Utility 3 | 2 . . 1 Device 1 | 1 . . . Storage 2 | 1 . . 1 Processor . | . . . . Hackware . | . . . . Protection . | . . . . Artifact . | . . . . Weapon 4 | 2 . . 2 Energy Gun 1 | . . . 1 Energy Cannon . | . . . . Ballistic Gun 2 | 2 . . . Ballistic Cannon 1 | . . . 1 Launcher . | . . . . Special Weapon . | . . . . Impact Weapon . | . . . . Slashing Weapon . | . . . . Piercing Weapon . | . . . . Special Melee Weapon . | . . . . Unidentified Prototypes . | . . . . Parts Lost . | . . . . Power . | . . . . Propulsion . | . . . . Utility . | . . . . Weapon . | . . . . Highest Loss Streak . | . . . . To Critical Strikes . | . . . . Average Backups 6 | 3 6 8 7 Power . | . 1 1 1 Propulsion 1 | 1 2 2 2 Utility 2 | . 2 3 3 Weapon 1 | 1 1 2 1 Tool/Special . | . . . . Unused Backups 9 | . . . 9 Power 1 | . . . 1 Propulsion 2 | . . . 2 Utility 3 | . . . 3 Weapon 3 | . . . 3 Tool/Special . | . . . . Average Slot Usage (%) 89 | . 100 100 63 Engine 12 | . 14 14 9 Treads 25 | . 28 28 18 Device 12 | . 14 14 9 Storage 12 | . 14 14 9 Energy Gun 2 | . . . 7 Ballistic Gun 21 | . 28 28 3 Ballistic Cannon 2 | . . . 7 Peak Build Rating 13 | 7 7 7 13 Average Rating 7 | 4 7 7 10 On Entrance 5 | . 7 7 7 Naked Turns . | . . . . Heaviest Build 34 | 15 15 15 34 Greatest Support 40 | 40 40 40 40 Greatest Overweight (x) 3 | 3 . . . Average Overweight (x) . | . . . . Largest Inventory Capacity 15 | 8 8 8 15 Average Capacity 8 | 7 8 8 8 Most Carried 8 | 7 8 8 8 Average Carried 6 | 3 6 8 7 Final Capacity 15 | 8 8 8 15 Final Carried 8 | 4 8 8 8 Class Distribution -------------------- 100% | Mutant Dominant Class ---------------- Mutant | -10/Materials Mutant | -10/Subcaves Mutant | -8/Materials Resources | -11 -10 -10 -8 ----------- Run | Yrd Mat Sub Mat Matter Collected 198 | 193 . . 5 Remotely . | . . . . Salvage Created 88 | 10 78 . . Parts 8 | 4 4 . . Haulers Intercepted . | . . . . Recyclers Shooed . | . . . . Parts Field Recycled . | . . . . Retrieved Matter . | . . . . Parts Self-Destructed . | . . . . Prevented . | . . . . Kills | -11 -10 -10 -8 ------- Run | Yrd Mat Sub Mat Combat Hostiles Destroyed 2 | . 2 . . Guns 2 | . 2 . . Classes Destroyed 2 | 1 1 . . Tunneler 1 | 1 . . . Grunt 2 | . 2 . . Best Kill Streak 2 | 1 2 . . Combat Bots Only 2 | . 2 . . Max Kills in Single Turn 1 | 1 1 . . Gunslinging . | . . . . Exploded . | . . . . Melee . | . . . . Uniques/NPCs Destroyed . | . . . . Combat | -11 -10 -10 -8 -------- Run | Yrd Mat Sub Mat Hostile Shots Fired 28 | . 28 . . Missed 14 | . 14 . . Hits 14 | . 14 . . Projectile 14 | . 14 . . Damage Taken 172 | . 150 . 22 Core 41 | . 41 . . Absorbed by Shields . | . . . . Core Remaining (%) 91 | 100 . 83 . Volleys Fired 27 | 6 20 . 1 Largest 2 | 2 2 . 2 Hottest 100 | 40 40 . 100 Shots Fired 54 | 12 40 . 2 Gun 53 | 12 40 . 1 Cannon 1 | . . . 1 Launcher . | . . . . Special . | . . . . Kinetic 53 | 12 40 . 1 Thermal 1 | . . . 1 Explosive . | . . . . Electromagnetic . | . . . . Robot Hit Streak 5 | 5 3 . 3 Robot Miss Streak 6 | 3 6 . . Penetration Max . | . . . . Secondary Targets . | . . . . Shots Hit Robots 26 | 7 17 . 2 Core Hits 7 | 1 5 . 1 Critical Kills . | . . . . Critical Parts Destroyed 2 | . 2 . . Critical Strikes 2 | . 2 . . Destroy 2 | . 2 . . Melee Attacks . | . . . . Impact . | . . . . Slashing . | . . . . Piercing . | . . . . Sneak Attacks . | . . . . Combat Hostiles . | . . . . Follow-up Attacks . | . . . . Damage Inflicted 359 | 99 224 . 36 Guns 339 | 99 224 . 16 Cannons 20 | . . . 20 Explosions . | . . . . Melee . | . . . . Ramming . | . . . . Kinetic 343 | 99 224 . 20 Thermal 16 | . . . 16 Explosive . | . . . . Electromagnetic . | . . . . Impact . | . . . . Slashing . | . . . . Piercing . | . . . . Highest Corruption . | . . . . Average Corruption . | . . . . Corruption Purged . | . . . . Corruption Blocked . | . . . . Overload Shots . | . . . . Overflow Damage . | . . . . Projectiles . | . . . . Explosions . | . . . . Melee . | . . . . Knockbacks 1 | . . . 1 Impact . | . . . . Kinetic 1 | . . . 1 Secondary . | . . . . Self-Inflicted Damage . | . . . . Shots . | . . . . Rammed . | . . . . Targets Rammed . | . . . . Kicked . | . . . . Crushed . | . . . . Highest Temperature 21 | . . . 21 Average Temperature 14 | . . . 14 Received Heat Transfer 84 | . 84 . . Siege Activations . | . . . . Martial Activations . | . . . . Shielding Activations . | . . . . Robots Disrupted . | . . . . Combat Hostiles . | . . . . Robots Corrupted . | . . . . Combat Hostiles . | . . . . Parts Fried . | . . . . Impact Corruptions . | . . . . Robots Melted . | . . . . Combat Hostiles . | . . . . Parts Melted . | . . . . Heat Transferred 37 | . . . 37 Parts Sabotaged . | . . . . Parts Stolen . | . . . . Parts Stripped . | . . . . Power Chain Reactions . | . . . . Alert | -11 -10 -10 -8 ------- Run | Yrd Mat Sub Mat Maximum Alert Level . | . . . . Low Security (%) 100 | 100 100 . 100 Level 1 . | . . . . Level 2 . | . . . . Level 3 . | . . . . Level 4 . | . . . . Level 5 . | . . . . High Security . | . . . . Max Security . | . . . . Peak Influence 30 | 5 30 . . Initial . | . . . . Average 1 | . 3 . . Influence Increases 45 | 5 40 . . Destroy 0b10 Robot/C 40 | . 40 . . Destroy 0b10 Robot/NC 5 | 5 . . . Influence Decreases 45 | 5 40 . . Time Decay 45 | 5 40 . . Squads Dispatched 3 | . 1 . 2 Investigation . | . . . . Extermination . | . . . . Reinforcement 1 | . 1 . . Assault 2 | . . . 2 Garrison . | . . . . Intercept . | . . . . Searches Triggered . | . . . . Construction Impeded . | . . . . Haulers Reinforced . | . . . . Active Scanning Responses . | . . . . Cargo Convoy Interrupts . | . . . . Stealth | -11 -10 -10 -8 --------- Run | Yrd Mat Sub Mat Distress Signals . | . . . . Communications Jammed . | . . . . Distress Signals . | . . . . Times Spotted 8 | . 7 . 1 Peak Tracking Total 3 | . 3 . 1 Tactical Retreats . | . . . . Traps | -11 -10 -10 -8 ------- Run | Yrd Mat Sub Mat Traps Triggered 1 | . . . 1 Indirectly . | . . . . Trap Hack Attempts . | . . . . Triggered . | . . . . Disarmed . | . . . . Reprogrammed . | . . . . Reused . | . . . . Traps Extracted . | . . . . Installed . | . . . . Triggered . | . . . . Machines | -11 -10 -10 -8 ---------- Run | Yrd Mat Sub Mat Machines Disabled . | . . . . Max in Single Turn . | . . . . Garrison Access 1 | . . . 1 Machines Repaired . | . . . . Machines Dismantled . | . . . . Machines Sabotaged . | . . . . Overloaded Fab Kills . | . . . . Hacking | -11 -10 -10 -8 --------- Run | Yrd Mat Sub Mat Machines Accessed 1 | . 1 . . Terminals 1 | . 1 . . Fabricators . | . . . . Repair Stations . | . . . . Recycling Units . | . . . . Scanalyzers . | . . . . Garrison Access . | . . . . Total Hacks 4 | . 4 . . Successful 1 | . 1 . . Failed 3 | . 3 . . Catastrophic 1 | . 1 . . Database Lockouts . | . . . . Manual 4 | . 4 . . Terminals 4 | . 4 . . Fabricators . | . . . . Repair Stations . | . . . . Recycling Units . | . . . . Scanalyzers . | . . . . Garrison Access . | . . . . Terminal Hacks . | . . . . Fabricator Hacks . | . . . . Repair Station Hacks . | . . . . Recycling Unit Hacks . | . . . . Scanalyzer . | . . . . Garrison Access Hacks . | . . . . Unauthorized Hacks 1 | . 1 . . Terminals 1 | . 1 . . Botnet 1 | . 1 . . Fabricators . | . . . . Repair Stations . | . . . . Recycling Units . | . . . . Scanalyzers . | . . . . Garrison Access . | . . . . Data Cores Recovered . | . . . . Used . | . . . . Hacking Detections 1 | . 1 . . Full Trace Events . | . . . . Feedback Events . | . . . . Feedback Blocked . | . . . . Robot Schematics Acquired . | . . . . Robots Built . | . . . . Authchips . | . . . . Time . | . . . . Total Robot Build Rating . | . . . . Part Schematics Acquired . | . . . . Parts Built . | . . . . Authchips . | . . . . Time . | . . . . Total Part Build Rating . | . . . . Parts Repaired . | . . . . Time . | . . . . Parts Recycled . | . . . . Recycled Matter . | . . . . Retrieved Matter . | . . . . Retrieved Components . | . . . . Parts Scanalyzed . | . . . . Part Schematics Acquired . | . . . . Parts Damaged . | . . . . Bothacking | -11 -10 -10 -8 ------------ Run | Yrd Mat Sub Mat Used RIF Installer . | . . . . Robots Hacked . | . . . . Non-combat . | . . . . Combat . | . . . . Robot Hacks Applied . | . . . . Relay Couplers Released 3 | . . . 3 Machine Destruction 3 | . . . 3 Fabnet Peak Effective % . | . . . . Robots Rewired . | . . . . Allies Hacked . | . . . . Hacks Repelled . | . . . . Allies | -11 -10 -10 -8 -------- Run | Yrd Mat Sub Mat Total Allies . | . . . . Largest Group . | . . . . Highest-Rated Group . | . . . . Highest-Rated Ally . | . . . . Total Orders . | . . . . Ally Attacks . | . . . . Total Damage . | . . . . Kills . | . . . . Allies Corrupted . | . . . . Allies Melted . | . . . . Intel | -11 -10 -10 -8 ------- Run | Yrd Mat Sub Mat Active Infowar (turns) 504 | 5 261 100 138 Seismic 504 | 5 261 100 138 Robot Analysis Total . | . . . . Derelict Logs Recovered . | . . . . Drone Launches . | . . . . Drone Recoveries . | . . . . Exploration | -11 -10 -10 -8 ------------- Run | Yrd Mat Sub Mat Turns Passed 660 | 161 261 100 138 Spaces Moved 289 | 78 72 59 80 Core 36 | 36 . . . Treads 253 | 42 72 59 80 Legs . | . . . . Wheels . | . . . . Hover . | . . . . Flight . | . . . . Fastest Speed 50 | 50 160 160 160 Average Speed 159 | 157 160 160 160 Slowest Speed 200 | 200 160 160 160 Overloaded Moves . | . . . . Propulsion Burnouts . | . . . . Robots Hopped . | . . . . Potential Cave-ins . | . . . . Cave-ins Triggered . | . . . . Exploration Rate (%) 9 | 5 20 2 12 Regions Visited 3 Branch Regions 1 Pre-discovered Areas 1 | . . 1 . Known Exits Taken . | . . . . Unknown Exits Taken 3 | 1 1 1 . Scrap Searched . | . . . . Spaces Dug . | . . . . Terrain Destroyed . | . . . . Melee . | . . . . Projectile . | . . . . AOE . | . . . . Terrain Rammed . | . . . . Walls Destroyed . | . . . . Machines Disabled . | . . . . Actions | -11 -10 -10 -8 --------- Run | Yrd Mat Sub Mat Total 439 | 104 178 65 92 Wait 93 | 3 83 7 . Move 286 | 77 71 58 80 Hop . | . . . . Pick Up 18 | 11 4 . 3 Fast Attach 2 | . . . 2 Attach 8 | 7 . . 1 Detach . | . . . . Swap . | . . . . Drop 5 | . . . 5 Fire 27 | 6 20 . 1 Melee . | . . . . Ram . | . . . . Kick . | . . . . Crush . | . . . . Escape Stasis . | . . . . Rewire . | . . . . Trap . | . . . . Miscellaneous . | . . . . Route ------- -11/Scrapyard -10/Materials (discovered 2 exits: [*Min] / [*Sub]) -10/Subcaves -8/Materials History --------- Turn | Location | Event 19 | -11/Scrapyard | Discovered new exit (range 16) 162 | -11/Scrapyard | Entered Materials 304 | -10/Materials | Discovered new exit (range 12) 311 | -10/Materials | Build established: Mutant 401 | -10/Materials | Discovered new exit (range 7) 423 | -10/Materials | Entered Subcaves 424 | -10/Subcaves | Approached by a straggling Scientist 427 | -10/Subcaves | Discovered new exit (range 11) 429 | -10/Subcaves | Learned location of Zion (-7) 429 | -10/Subcaves | Met a Zionite searching for "candidates" 523 | -10/Subcaves | Entered Materials 523 | -8/Materials | Evolved 4 slots: Utility x4 661 | -8/Materials | Self-destructed Last Messages --------------- 00539_ Acquired Pulse Rifle. 00544_ Dropped Assault Rifle. 00545_ Acquired Assault Cannon. 00581_ Acquired EM Pulse Cannon. 00633_ Dropped Grenade Launcher. 00633_ Acquired Imp. Grenade Launcher. 00642_ Acquired Lrg. Storage Unit. 00643_ Dropped Sml. Storage Unit. 00650_ W-25 Informer knocked back. 00655_ Acquired 5 matter. 00659_ Triggered Proton Bomb Trap. 00659_ A bubble of electromagnetic force engulfs the area. 00659_ ALERT: Garrison Access compromised, dispatching multiple assault carriers. 00659_ Garrison Access disabled. 00659_ Relay Coupler [Swarmer] tumbles out of Garrison Access. 00659_ Relay Coupler [Grunt] tumbles out of Garrison Access. Map ----- +----------------------------------------------------+ | ?????????????????????????????????????????????????? | | ?????????????????????????????????????????????????? | | ?????????????????????????????????????????????????? | | ?????????????????????????????????????????????????? | | ?????????????????????????????????????????????????? | | ?????????????????????????????????????????????????? | | ?????????????????????????????????????????????????? | | ?????????????????????????????????????????????????? | | ?????????????????????????????????????????????????? | | ?????????????????????????????????????????????????? | | ?????????????????????????????????????????????????? | | ?????????????????????????????????????????????????? | | ?????????????????????????????????????????????????? | | ?????????????????????????????????????????#???????? | | ???????????????????????????????????????? #???????? | | ??????????????????????????######?????? #???????? | | ?????????????????####????##!!!!##????# #???????? | | ?????????????????? u ????#! !#????# #???????? | | ???????????????????# ?### #????# #???????? | | ???????????????????# ##T# ###### #???????? | | ???????????????????# #???????? | | ???????????????????# #??????## | | ???????????????????# """m ^ ] #??????# | | ???????????????????# "G """ """ #??????# | | ???????????????????# " ! """ """ +??????# | | ???????????????????# !@ """ """ #??????#[ | | ???????????????????# #??????# | | ???????????????????# ##?????# | | ???????????????????+ """ """ """ ######## | | ???????????????????# """ """ """ | | ???????????????????# ] """ """ """ | | ???????????????????# | | ???????????????????# | | ???????????????????############################### | | ?????????????????????????????????????????????????? | | ?????????????????????????????????????????????????? | | ?????????????????????????????????????????????????? | | | | | | | | | | | | | | | | | | | | | | | | | | | +----------------------------------------------------+ Best States ------------- Heat Dissipation 31 Energy Generation 10 Energy Capacity 250 Matter Stores 199 Matter Capacity 300 Sight Range 16 Terrain Scan Density 10 Evasion (%) 40 Recoil Reduction 2 Item Schematics ----------------- None Robot Schematics ------------------ None Fabricated ------------ Nothing Repaired ---------- Nothing Alien Tech Used ----------------- None Achievements -------------- None Challenges ------------ None Game ------ Seed MyomerFlyingMapper Manual? 0 Play Time 00:05:03 Cumulative 45.4 hours Start 2025.07.24 @ 05:16:03 End 2025.07.24 @ 05:24:48 Sessions 1 Manual Loads 0 Difficulty Rogue Special Mode None Game No. 111 Rogue 111 Adventurer 0 Explorer 0 Win Type - Total 0 Types 0/0/0/0/0/0/0/0/0/0 Lore% 38 Gallery% 37 Achievement% 30 Wizard Run 0 Options --------- Layout 1 ASCII 0 Keyboard 0 Movement Mouse Keybinds 0 Fullscreen 1 Font 24/Smallcaps Map View 50x35 Zoom Use 0% Tactical HUD 1 Map Filters NONE Filters NONE Steam 1 RUN: 6e3bf5bc-71d9-47f6-a018-ae1a55b065ab